Cogmind - Beta 14 @@@ ROGUE MODE // 2024.08.08 @ 01:12:03 Player: Olafz Result: Destroyed by KQ-VDX(R) with Subdweller Shrapnel Launcher Performance ------------- Evolutions (0) 0 Regions Visited (2) 400 Robots Destroyed (21) 105 Value Destroyed (415) 415 Prototype IDs (0) 0 Alien Tech Used (0) 0 Bonus (0) 0 TOTAL SCORE: 920 Bonus ------- None Cogmind --------- Core Integrity 0/250 Matter 15/300 Energy 200/200 System Corruption 7% Temperature Cool (0) Movement Rolling (110) Ox2 Location -10/Subcaves Parts ------- > --- POWER (1) -------- Subdweller Power Source > --- PROPULSION (2) --- Wheel Wheel > --- UTILITY (2) ------ High-capacity Storage Unit Makeshift Light Armor Plating > --- WEAPON (2) ------- Beam Rifle > --- INVENTORY (20) --- Subdweller Power Source Wheel Subdweller Monowheel Subdweller Monowheel High-capacity Storage Unit Subdweller Optics EM Pulse Gun EM Pulse Gun Beam Rifle Beam Rifle Beam Rifle Battle Cannon Subdweller Shrapnel Launcher Multitool Peak State ------------ > --- POWER ------------ Subdweller Power Source > --- PROPULSION ------- Wheel Wheel > --- UTILITY ---------- High-capacity Storage Unit Makeshift Light Armor Plating > --- WEAPON ----------- Battle Cannon Subdweller Shrapnel Launcher > --- INVENTORY -------- Subdweller Power Source Wheel Subdweller Monowheel Subdweller Monowheel High-capacity Storage Unit Subdweller Optics EM Pulse Gun EM Pulse Gun Beam Rifle Beam Rifle Beam Rifle Beam Rifle Subdweller Shrapnel Launcher Multitool [Rating: 15] Favorites ----------- Power Light Ion Engine Engine Light Ion Engine Power Core Light Nuclear Core Propulsion Wheel Leg Aluminum Leg Wheel Wheel Utility High-capacity Storage Unit Device Structural Scanner Storage High-capacity Storage Unit Protection Makeshift Light Armor Plating Weapon Beam Rifle Energy Gun Beam Rifle Ballistic Cannon Battle Cannon Launcher Subdweller Shrapnel Launcher Build | -11 -10 -10 ------- Run | Yrd Mat Sub Slots Evolved . | . . . Power . | . . . Propulsion . | . . . Utility . | . . . Weapon . | . . . Parts Attached 21 | . 10 11 Power 3 | . 1 2 Engine 2 | . . 2 Core 1 | . 1 . Reactor . | . . . Propulsion 4 | . 2 2 Treads . | . . . Leg . | . . . Wheel 4 | . 2 2 Hover . | . . . Flight . | . . . Utility 4 | . 3 1 Device 1 | . 1 . Storage 1 | . 1 . Processor . | . . . Hackware . | . . . Protection 2 | . 1 1 Artifact . | . . . Weapon 10 | . 4 6 Energy Gun 4 | . 2 2 Energy Cannon . | . . . Ballistic Gun . | . . . Ballistic Cannon 1 | . . 1 Launcher 5 | . 2 3 Special Weapon . | . . . Impact Weapon . | . . . Slashing Weapon . | . . . Piercing Weapon . | . . . Special Melee Weapon . | . . . Unidentified Prototypes . | . . . Corrupted Parts 1 | . 1 . System Corruption 2 | . 2 . Parts Lost 6 | . . 6 Power 2 | . . 2 Propulsion 2 | . . 2 Utility 1 | . . 1 Weapon 1 | . . 1 Highest Loss Streak 4 | . . 4 To Critical Strikes . | . . . Average Slot Usage (%) 94 | . 98 92 Engine 9 | . 5 10 Core 4 | . 8 2 Wheel 27 | . 26 28 Device 4 | . 8 2 Storage 14 | . 14 14 Protection 4 | . 4 4 Energy Gun 14 | . 27 8 Ballistic Cannon 8 | . . 11 Launcher 5 | . . 7 Peak Build Rating 15 | . 12 15 Average Rating 11 | . 10 11 On Entrance 7 | 6 6 11 Naked Turns . | . . . Heaviest Build 60 | 14 52 60 Greatest Support 26 | 20 26 26 Greatest Overweight (x) 2 | . 1 2 Average Overweight (x) 1 | . . 1 Largest Inventory Capacity 20 | . 20 20 Average Capacity 17 | . 10 20 Most Carried 15 | . 9 15 Average Carried 10 | . 7 11 Final Capacity 20 | 8 20 20 Final Carried 14 | 6 9 14 Class Distribution -------------------- 100% | Mutant Dominant Class ---------------- Mutant | -10/Materials Mutant | -10/Subcaves Resources | -11 -10 -10 ----------- Run | Yrd Mat Sub Matter Collected 486 | 200 60 226 Remotely . | . . . Salvage Created 457 | . 353 104 Parts 44 | . 35 9 Haulers Intercepted 1 | . 1 . Recyclers Shooed 1 | . 1 . Parts Field Recycled . | . . . Retrieved Matter . | . . . Parts Self-Destructed 1 | . . 1 Prevented . | . . . Kills | -11 -10 -10 ------- Run | Yrd Mat Sub Combat Hostiles Destroyed 15 | . 8 7 Guns 3 | . 3 . Cannons 2 | . . 2 AOE 10 | . 5 5 Classes Destroyed 7 | . 6 1 Builder 2 | . 2 . Hauler 1 | . 1 . Operator 1 | . 1 . Watcher 2 | . 2 . Swarmer 9 | . 5 4 Grunt 3 | . 3 . Subdweller 3 | . . 3 Best Kill Streak 4 | . 3 4 Combat Bots Only 4 | . 3 4 Max Kills in Single Turn 3 | . 3 3 Gunslinging . | . . . Exploded 3 | . 3 3 Melee . | . . . Uniques/NPCs Destroyed . | . . . Combat | -11 -10 -10 -------- Run | Yrd Mat Sub Hostile Shots Fired 104 | . 33 71 Missed 39 | . 15 24 Damage Taken 975 | . 222 753 Core 277 | . 44 233 Absorbed by Shields . | . . . Core Remaining (%) 100 | 100 . . Volleys Fired 74 | . 26 48 Largest 2 | . 2 2 Hottest 96 | . 96 95 Shots Fired 128 | . 52 76 Gun 77 | . 49 28 Cannon 41 | . . 41 Launcher 10 | . 3 7 Special . | . . . Kinetic 47 | . . 47 Thermal 54 | . 26 28 Explosive 4 | . 3 1 Electromagnetic 23 | . 23 . Robot Hit Streak 11 | . 11 10 Robot Miss Streak 4 | . 4 2 Penetration Max . | . . . Secondary Targets 1 | . 1 . Max Gunslinging Chain 1 | . 1 . Shots Hit Robots 51 | . 29 22 Core Hits 30 | . 19 11 Critical Kills . | . . . Critical Parts Destroyed . | . . . Critical Strikes 3 | . 2 1 Burn 3 | . 2 1 Melee Attacks . | . . . Impact . | . . . Slashing . | . . . Piercing . | . . . Sneak Attacks . | . . . Combat Hostiles . | . . . Follow-up Attacks . | . . . Damage Inflicted 1549 | . 685 864 Guns 563 | . 403 160 Cannons 189 | . . 189 Explosions 760 | . 258 502 Melee . | . . . Ramming 37 | . 24 13 Kinetic 619 | . . 619 Thermal 367 | . 207 160 Explosive 309 | . 237 72 Electromagnetic 217 | . 217 . Impact . | . . . Slashing . | . . . Piercing . | . . . Highest Corruption 7 | . 2 7 Average Corruption 2 | . 2 2 Corruption Purged . | . . . Corruption Blocked . | . . . Effects 18 | . 3 15 Message Errors 4 | . 1 3 Matter Fused 5 | . 1 4 Heat Flow Errors 1 | . . 1 Energy Discharges 3 | . 1 2 Parts Rejected 1 | . . 1 Data Loss (minor) 1 | . . 1 Data Loss (major) 1 | . . 1 Misfires 2 | . . 2 Overload Shots . | . . . Overflow Damage 43 | . . 43 Projectiles . | . . . Explosions 43 | . . 43 Melee . | . . . Knockbacks 3 | . . 3 Impact . | . . . Kinetic 3 | . . 3 Secondary . | . . . Self-Inflicted Damage 46 | . 40 6 Shots 2 | . 2 . Rammed 6 | . 5 1 Targets Rammed 6 | . 5 1 Kicked . | . . . Crushed . | . . . Highest Temperature 426 | . 426 250 Average Temperature 128 | . 133 75 Received Heat Transfer 279 | . 66 213 Effects 3 | . 3 . Energy Bleed 1 | . 1 . Interference 2 | . 2 . Siege Activations . | . . . Robots Corrupted . | . . . Combat Hostiles . | . . . Parts Fried . | . . . Impact Corruptions . | . . . Robots Melted . | . . . Combat Hostiles . | . . . Parts Melted 2 | . 1 1 Heat Transferred 1160 | . 679 481 Parts Sabotaged . | . . . Parts Stolen . | . . . Parts Stripped . | . . . Power Chain Reactions 1 | . 1 . Alert | -11 -10 -10 ------- Run | Yrd Mat Sub Peak Influence 332 | . 332 . Initial . | . . . Average 136 | . 136 . Maximum Alert Level 1 | . 1 . Low Security (%) 77 | . 77 . Level 1 22 | . 22 . Level 2 . | . . . Level 3 . | . . . Level 4 . | . . . Level 5 . | . . . High Security . | . . . Max Security . | . . . Squads Dispatched 1 | . 1 . Investigation . | . . . Extermination . | . . . Reinforcement 1 | . 1 . Assault . | . . . Garrison . | . . . Intercept . | . . . Searches Triggered . | . . . Construction Impeded . | . . . Haulers Reinforced . | . . . Active Scanning Responses . | . . . Cargo Convoy Interrupts . | . . . Stealth | -11 -10 -10 --------- Run | Yrd Mat Sub Distress Signals 2 | . 2 . Communications Jammed . | . . . Distress Signals . | . . . Times Spotted 32 | . 18 14 Peak Tracking Total 6 | . 4 6 Tactical Retreats 5 | . 1 4 Traps | -11 -10 -10 ------- Run | Yrd Mat Sub Traps Triggered 1 | . . 1 Indirectly . | . . . Trap Hack Attempts . | . . . Triggered . | . . . Disarmed . | . . . Reprogrammed . | . . . Reused . | . . . Traps Extracted . | . . . Installed . | . . . Triggered . | . . . Machines | -11 -10 -10 ---------- Run | Yrd Mat Sub Machines Disabled 7 | . 3 4 Max in Single Turn 3 | . 3 1 Machines Repaired . | . . . Machines Dismantled . | . . . Machines Sabotaged . | . . . Overloaded Fab Kills . | . . . Hacking | -11 -10 -10 --------- Run | Yrd Mat Sub Machines Accessed 1 | . . 1 Terminals . | . . . Fabricators . | . . . Repair Stations . | . . . Recycling Units . | . . . Scanalyzers . | . . . Garrison Access . | . . . Total Hacks 5 | . . 5 Successful 5 | . . 5 Failed . | . . . Catastrophic . | . . . Database Lockouts . | . . . Manual . | . . . Terminals . | . . . Fabricators . | . . . Repair Stations . | . . . Recycling Units . | . . . Scanalyzers . | . . . Garrison Access . | . . . Terminal Hacks 5 | . . 5 Record 5 | . . 5 Fabricator Hacks . | . . . Repair Station Hacks . | . . . Recycling Unit Hacks . | . . . Scanalyzer . | . . . Garrison Access Hacks . | . . . Unauthorized Hacks . | . . . Terminals . | . . . Fabricators . | . . . Repair Stations . | . . . Recycling Units . | . . . Scanalyzers . | . . . Garrison Access . | . . . Data Cores Recovered 1 | . 1 . Used . | . . . Hacking Detections . | . . . Full Trace Events . | . . . Feedback Events . | . . . Feedback Blocked . | . . . Robot Schematics Acquired . | . . . Robots Built . | . . . Authchips . | . . . Time . | . . . Total Robot Build Rating . | . . . Part Schematics Acquired . | . . . Parts Built . | . . . Authchips . | . . . Time . | . . . Total Part Build Rating . | . . . Parts Repaired . | . . . Time . | . . . Parts Recycled . | . . . Recycled Matter . | . . . Retrieved Matter . | . . . Retrieved Components . | . . . Parts Scanalyzed . | . . . Part Schematics Acquired . | . . . Parts Damaged . | . . . Bothacking | -11 -10 -10 ------------ Run | Yrd Mat Sub Used RIF Installer . | . . . Robots Hacked . | . . . Non-combat . | . . . Combat . | . . . Robot Hacks Applied . | . . . Relay Couplers Released . | . . . Fabnet Peak Effective % . | . . . Robots Rewired . | . . . Allies Hacked . | . . . Hacks Repelled . | . . . Allies | -11 -10 -10 -------- Run | Yrd Mat Sub Total Allies . | . . . Largest Group . | . . . Highest-Rated Group . | . . . Highest-Rated Ally . | . . . Total Orders . | . . . Ally Attacks . | . . . Total Damage . | . . . Kills . | . . . Allies Corrupted . | . . . Allies Melted . | . . . Intel | -11 -10 -10 ------- Run | Yrd Mat Sub Robot Analysis Total . | . . . Derelict Logs Recovered 1 | . . 1 Drone Launches . | . . . Drone Recoveries . | . . . Exploration | -11 -10 -10 ------------- Run | Yrd Mat Sub Turns Passed 1575 | . 498 1077 Spaces Moved 1168 | 1 321 846 Core . | . . . Treads . | . . . Legs 25 | 1 24 . Wheels 1143 | . 297 846 Hover . | . . . Flight . | . . . Fastest Speed 90 | 120 90 105 Average Speed 104 | 120 94 108 Slowest Speed 120 | 120 120 110 Overloaded Moves . | . . . Propulsion Burnouts . | . . . Robots Hopped . | . . . Cave-ins Triggered . | . . . Exploration Rate (%) 41 | 2 68 53 Regions Visited 2 Branch Regions 1 Pre-discovered Areas 2 | . . 2 Known Exits Taken . | . . . Unknown Exits Taken 2 | 1 1 . Scrap Searched . | . . . Spaces Dug 21 | . . 21 Terrain Destroyed 142 | . 52 90 Melee . | . . . Projectile 3 | . . 3 AOE 139 | . 52 87 Terrain Rammed . | . . . Walls Destroyed . | . . . Machines Disabled . | . . . Actions | -11 -10 -10 --------- Run | Yrd Mat Sub Total 1387 | . 466 921 Wait 93 | . 88 5 Move 1166 | . 320 846 Hop . | . . . Pick Up 16 | . 8 8 Fast Attach 6 | . 3 3 Attach 7 | . 2 5 Detach 3 | . 1 2 Swap 8 | . 5 3 Drop 8 | . 8 . Fire 74 | . 26 48 Melee . | . . . Ram 6 | . 5 1 Kick . | . . . Crush . | . . . Escape Stasis . | . . . Rewire . | . . . Trap . | . . . Miscellaneous . | . . . Route ------- -11/Scrapyard -10/Materials (discovered 4 exits: [*Mat x2] / [*Min] / *Sub) -10/Subcaves (discovered 1 exit: [*Rec]) History --------- Turn | Location | Event 1 | -11/Scrapyard | Discovered new exit (range 0) 1 | -11/Scrapyard | Entered Materials 138 | -10/Materials | Discovered new exit (range 10) 313 | -10/Materials | Build established: Mutant 344 | -10/Materials | Discovered new exit (range 16) 489 | -10/Materials | Discovered new exit (range 5) 492 | -10/Materials | Discovered new exit (range 9) 499 | -10/Materials | Entered Subcaves 621 | -10/Subcaves | Visited Clippyterm 624 | -10/Subcaves | Learned location of Deep Caves (-6) 624 | -10/Subcaves | Learned Research security intel 654 | -10/Subcaves | Shifting Twisted Machinery released Battle Cannon 655 | -10/Subcaves | Shifting Twisted Machinery released Sub. Power Source 663 | -10/Subcaves | Shifting Twisted Machinery released Shrapnel Trap 748 | -10/Subcaves | Shifting Twisted Machinery released Flamer 756 | -10/Subcaves | Lost 4 parts (1p2n1u) 919 | -10/Subcaves | A swath of the cavern ceiling suddenly collapsed 986 | -10/Subcaves | A swath of the cavern ceiling suddenly collapsed 1023 | -10/Subcaves | Core integrity fell below 50% 1035 | -10/Subcaves | Discovered new exit (range 16) 1093 | -10/Subcaves | Ambushed by Subdweller buried in earth 1574 | -10/Subcaves | Core integrity fell below 20% 1576 | -10/Subcaves | Destroyed by KQ-VDX(R) with Subdweller Shrapnel Launcher Last Messages --------------- System corrupted: Matter fused (-3). Acquired 29 matter. Acquired 23 matter. :M8U=Y|VHA M5IUDP%UCE:T46 System corrupted: FCS attempts to trigger Sub. Shrapnel Launcher. System corrupted: Sub. Shrapnel Launcher misfires. Triggered Piercing Trap. Spikes shoot up from the floor. Critical hit (Impale). Slammed into 1Z-LBL(u). Lgt. Ion Engine destroyed. System corrupted by crushing effect (+5). System corrupted: Matter fused (-2). GSM<,Y8>:JI NRD9IX=K/ABXRJCAHQIZ System corrupted: Energy discharge (-50). Acquired 25 matter. E6-ICJ(R) destroyed. System corrupted: Sub. Shrapnel Launcher rejected. KQ-VDX(R) affixes Scrap Shield Fragment to Scrap Shield. Subatomizers dissect the Sub. Optics. Map ----- +----------------------------------------------------+ | ???????????????# ## ##????# | | ???????????????# ### ##?### | | ??????????????# ##?## ### | | ??????????????## #???### | | ???????????????####?????# #### | | ????????????????????????## ###??? | | ????????????????????????## ## ####????? | | ????????????????????????# ## #???????? | | ????????????????????????## # ## #??????? | | ????????????????????#????# #### ##??????? | | ????????????????????? ???### #??####???????? | | ?????????????????????# ????## ###???????????? | | ?????????????????????# ####?## ##??????????? | | ?????????????????????? #?# #??????????? | | ???????????????????????# ### ####??????????? | | ????????????????????????# # ##?????????????? | | ???????????????#????????# #??????????????? | | ???????????????# #??????# #??????????????? | | ???????????????# ##???# ##??????????????? | | ???????????????# #### #???????????????? | | ???????????????# ## ##???????????????? | | ???????????????## ##????????????????? | | ??????????????## #?????????????????? | | ??????????????# # ###?????????????? | | ??????????????# ;;; #?????????????? | | ??????????????# @ & ;;#?????????????? | | ??????????????# !R ;#?????????????? | | ??????????????# ! #?????????????? | | ??????????????#### ;; #????????????? | | ?????????????????# #; #???????????? | | ?????????????????####### ####?# #??????????? | | ????????????????????????##??????# ??????????? | | ????????????????????????????????? ? ??????????? | | ??????????????????????????????????????????????? | | ??????????????????????????????????????????????? | | ??????????????????????????????????????????????? | | ??????????????????????????????????????????????? | | ??????????????????????????????????????????????? | | ??????????????????????????????????????????????? | | ??????????????????????????????????????????????? | | ??????????????????????????????????????????????? | | ??????????????????????????????????????????????? | | ??????????????????????????????????????????????? | | ??????????????????????????????????????????????? | | ??????????????????????????????????????????????? | | ??????????????????????????????????????????????? | | ??????????????????????????????????????????????? | | ??????????????????????????????????????????????? | | ??????????????????????????????????????????????? | | ??????????????????????????????????????????????? | +----------------------------------------------------+ Best States ------------- Heat Dissipation 25 Energy Generation 15 Energy Capacity 250 Matter Stores 300 Matter Capacity 300 Sight Range 16 Terrain Scan Density 10 Armor Coverage 225 Evasion (%) 45 Item Schematics ----------------- None Robot Schematics ------------------ None Fabricated ------------ Nothing Alien Tech Used ----------------- None Achievements -------------- Dramatic Entrance Challenges ------------ None Game ------ Seed AbsorptionXenonTreads Manual? 0 Play Time 00:16:34 Cumulative 173.8 hours Start 2024.08.08 @ 00:57:31 End 2024.08.08 @ 01:12:03 Sessions 1 Manual Loads 0 Difficulty Rogue Special Mode None Game No. 288 Rogue 286 Adventurer 2 Explorer 0 Win Type - Total 5 Types 4/0/0/1/0/0/0/0/0 Lore% 63 Gallery% 62 Achievement% 52 Wizard Run 0 Options --------- Layout 0 ASCII 0 Keyboard 1 Movement Numpad Keybinds 1 Fullscreen 2 Font 18/SmallcapsGlow Map View 76x50 Zoom Use 0% Tactical HUD 1 Map Filters NONE Filters NONE Steam 1 RUN: b44ea5af-51c1-40d7-bead-0c575f0826bf